Cogmind - Beta 11.1 @@@ ROGUE MODE // 2022.04.29 @ 01:09:37 Player: Jezoensis Result: Self-destructed Performance ------------- Evolutions (7) 3500 Regions Visited (19) 3800 Robots Destroyed (245) 1225 Value Destroyed (9633) 9633 Prototype IDs (33) 660 Alien Tech Used (0) 0 Bonus (6833) 6833 TOTAL SCORE: 25651 Bonus ------- High Alert Combat Kills 2105 Follower Combat Kills 228 Entered Garrisons 1200 Used RIF Installer 3000 Aligned with FarCom 300 Cogmind --------- Core Integrity 1300/1300 Matter 260/300 Energy 167/170 System Corruption 0% Temperature Cool (0) Movement Walking (190) Ox1 Location -3/Research Parts ------- > --- POWER (1) -------- Light Antimatter Reactor > --- PROPULSION (5) --- Improved Treads Flexi-carbon Leg Flexi-carbon Leg Flexi-carbon Leg > --- UTILITY (11) ----- Advanced Heat Sink High-capacity Storage Unit Improved Trap Scanner Machine Analyzer Visual Processing Unit Advanced Terrain Scanner Advanced Terrain Scan Processor Improved Salvage Targeting Computer Targeting Computer Relay Coupler [NC] (39) Relay Coupler [Hunter] (21) > --- WEAPON (4) ------- Autogun Autogun Autogun Autogun > --- INVENTORY (20) --- Light Antimatter Reactor Energy Well (350) High-capacity Matter Pod (200) Core Analyzer Improved Weapon Cycler Improved Weapon Cycler Cloak of Protection EM Disruption Field Long-range Tractor Beam Plasma Rifle Heavy Phase Cannon Heavy Missile Launcher Improved Remote Datajack Peak State ------------ > --- POWER ------------ Neutrino Core > --- PROPULSION ------- Improved Treads Improved Treads Medium Treads Armored Medium Treads > --- UTILITY ---------- Advanced Heat Sink High-capacity Storage Unit Machine Analyzer Visual Processing Unit Advanced Terrain Scan Processor Improved Salvage Targeting Computer Improved Weapon Cycler Transmission Jammer Relay Coupler [NC] Relay Coupler [Hunter] > --- WEAPON ----------- Tesla Rifle Gauss Rifle KE Penetrator KE Penetrator > --- INVENTORY -------- Improved Treads High-capacity Matter Pod Improved Trap Scanner Advanced Terrain Scanner Targeting Computer Core Analyzer Improved Weapon Cycler Cloak of Protection EM Disruption Field Improved Shield Generator Relay Coupler [NC] Long-range Tractor Beam Tesla Rifle Heavy Phase Cannon Autogun Gauss Rifle KE Penetrator KE Penetrator Heavy Missile Launcher Improved Remote Datajack [Rating: 85] Favorites ----------- Power Cooled Deuterium Engine Engine Cooled Deuterium Engine Power Core Neutrino Core Reactor Light Antimatter Reactor Propulsion Light Treads Treads Light Treads Leg Carbon-fiber Leg Wheel Compact Wheel Utility Visual Processing Unit Device Improved Terrain Scanner Storage High-capacity Storage Unit Processor Visual Processing Unit Hackware Relay Coupler [NC] Protection Improved Weapon Shielding Weapon Gauss Rifle Energy Gun Improved Medium Laser Energy Cannon Heavy Phase Cannon Ballistic Gun Gauss Rifle Launcher Mini Grenade Launcher Special Weapon Mining Laser Impact Weapon Power Maul Slashing Weapon Chainsword Build | -11 -10 -10 -9 -9 -9 -8 -8 -8 -7 -7 -7 -7 -6 -6 -5 -5 -4 -4 -3 ------- Run | Scr Mat Min Mat Min Exi Min Mat Gar Fac Gar Fac Gar Fac Gar Fac Gar Fac Gar Res Slots Evolved 14 | . . . 2 . . . 2 . 2 . . . 2 . 2 . 2 . 2 Power . | . . . . . . . . . . . . . . . . . . . . Propulsion 3 | . . . . . . . 1 . 1 . . . . . . . . . 1 Utility 9 | . . . 1 . . . 1 . 1 . . . 2 . 1 . 2 . 1 Weapon 2 | . . . 1 . . . . . . . . . . . 1 . . . . Parts Attached 389 | 7 21 . 16 2 . 2 47 29 44 17 62 2 18 24 17 37 4 38 2 Power 24 | 1 1 . 1 . . . 2 4 2 1 6 . 4 . . 1 . 1 . Engine 20 | 1 1 . 1 . . . 2 4 2 1 4 . 4 . . . . . . Core 3 | . . . . . . . . . . . 2 . . . . 1 . . . Reactor 1 | . . . . . . . . . . . . . . . . . . 1 . Propulsion 63 | 2 4 . 1 . . . 12 4 9 3 13 . 1 4 1 4 . 5 . Treads 46 | . 3 . 1 . . . 12 4 9 . 6 . 1 3 1 4 . 2 . Leg 11 | . . . . . . . . . . 3 4 . . 1 . . . 3 . Wheel 6 | 2 1 . . . . . . . . . 3 . . . . . . . . Hover . | . . . . . . . . . . . . . . . . . . . . Flight . | . . . . . . . . . . . . . . . . . . . . Utility 150 | 2 4 . 7 2 . 2 16 9 14 5 19 1 9 11 10 16 4 17 2 Device 128 | 1 2 . 6 2 . 2 13 9 11 3 18 1 7 11 9 16 2 13 2 Storage 3 | 1 1 . . . . . 1 . . . . . . . . . . . . Processor 11 | . 1 . 1 . . . 2 . 2 . 1 . 1 . 1 . 1 1 . Hackware 5 | . . . . . . . . . . . . . 1 . . . 1 3 . Protection 3 | . . . . . . . . . 1 2 . . . . . . . . . Artifact . | . . . . . . . . . . . . . . . . . . . . Weapon 152 | 2 12 . 7 . . . 17 12 19 8 24 1 4 9 6 16 . 15 . Energy Gun 53 | . 1 . 3 . . . 7 4 6 4 12 1 2 3 2 7 . 1 . Energy Cannon 5 | . . . . . . . 2 . . . . . . . 2 . . 1 . Ballistic Gun 53 | 2 5 . 4 . . . 5 4 4 . 4 . . 5 1 7 . 12 . Ballistic Cannon . | . . . . . . . . . . . . . . . . . . . . Launcher 18 | . 2 . . . . . 1 4 5 4 . . . . . 1 . 1 . Special Weapon 7 | . 4 . . . . . 1 . . . 1 . . . . 1 . . . Impact Weapon 5 | . . . . . . . . . . . 5 . . . . . . . . Slashing Weapon 11 | . . . . . . . 1 . 4 . 2 . 2 1 1 . . . . Piercing Weapon . | . . . . . . . . . . . . . . . . . . . . Special Melee Weapon . | . . . . . . . . . . . . . . . . . . . . Unidentified Prototypes 8 | . . . 1 . . . 2 . . . 3 . 1 . 1 . . . . Corrupted Parts 9 | . . . . . . . . . . . . . . 4 . 5 . . . System Corruption 36 | . . . . . . . . . . . . . . 10 . 26 . . . Parts Lost 70 | . 2 . 1 . . . 2 8 10 4 10 . . 9 1 3 . 20 . Power 9 | . 1 . . . . . . 2 2 1 1 . . . . 1 . 1 . Propulsion 27 | . 1 . 1 . . . 1 3 5 1 6 . . 3 . 1 . 5 . Utility 9 | . . . . . . . . . . 2 1 . . 1 . 1 . 4 . Weapon 25 | . . . . . . . 1 3 3 . 2 . . 5 1 . . 10 . Highest Loss Streak 14 | . 1 . 1 . . . 1 6 8 2 7 . . 6 1 1 . 14 . To Critical Strikes 1 | . . . . . . . . . . . . . . . . . . 1 . Average Slot Usage (%) 98 | . 99 100 99 100 100 100 99 100 94 97 99 100 100 98 100 99 100 90 95 Engine 7 | . 14 14 11 11 11 11 9 9 5 6 6 7 6 6 5 2 . . . Treads 23 | . 18 28 22 22 22 22 26 27 27 23 22 30 26 24 23 22 21 13 4 Leg 1 | . . . . . . . . . . 5 5 . . . . . . 3 14 Device 9 | . 13 14 11 11 11 11 9 9 5 5 6 7 6 6 11 13 15 14 14 Storage 7 | . 14 14 11 11 11 11 9 9 7 7 7 7 6 6 5 5 5 5 4 Processor 19 | . . . 11 11 11 11 18 18 23 23 23 23 26 26 23 20 20 22 23 Hackware 1 | . . . . . . . . . . . . . 6 6 5 5 10 6 9 Energy Gun 5 | . 1 14 10 11 11 11 7 8 3 6 4 7 1 6 . 7 5 . . Ballistic Gun 16 | . 23 14 22 22 22 22 18 17 13 15 14 15 13 12 17 14 15 16 19 Naked Turns . | . . . . . . . . . . . . . . . . . . . . Heaviest Build 81 | 12 30 30 37 38 37 44 59 59 58 62 64 64 64 66 76 81 78 78 . Greatest Support 109 | 32 40 40 40 40 40 40 60 60 86 86 88 80 80 106 109 109 97 101 . Greatest Overweight (x) 16 | . . . . . . 1 1 . . . 4 . . 1 . 1 . 16 . Average Overweight (x) . | . . . . . . . . . . . . . . . . . . . . Largest Inventory Capacity 20 | 8 15 15 15 15 15 15 20 20 20 20 20 20 20 20 20 20 20 20 20 Average Capacity 18 | 6 11 15 15 15 15 15 17 20 20 20 20 20 20 20 20 20 20 20 20 Most Carried 20 | 5 15 15 15 14 15 15 20 20 20 20 20 20 20 20 20 20 20 20 13 Average Carried 17 | 3 9 15 14 14 14 15 17 19 18 18 19 19 19 19 18 19 19 17 13 Final Capacity 20 | 8 15 15 15 15 15 15 20 20 20 20 20 20 20 20 20 20 20 20 20 Final Carried 20 | 5 15 15 14 14 15 15 20 20 16 20 20 20 20 19 20 20 20 14 13 Class Distribution -------------------- 52% | Scavenger-Skirmisher 16% | Scavenger-Assassin 12% | Scavenger-Mutant 9% | Mutant 6% | Skirmisher Dominant Class ---------------- Mutant | -10/Materials Mutant | -10/Mines Scavenger-Skirmisher | -9/Materials Scavenger-Skirmisher | -9/Mines Scavenger-Skirmisher | -9/Exiles Scavenger-Skirmisher | -8/Mines Scavenger-Skirmisher | -8/Materials Skirmisher | -8/Garrison Scavenger-Assassin | -7/Factory Scavenger-Skirmisher | -7/Garrison Scavenger-Skirmisher | -7/Factory Scavenger-Mutant | -7/Garrison Scavenger-Assassin | -6/Factory Scavenger-Skirmisher | -6/Garrison Scavenger-Mutant | -5/Factory Scavenger-Skirmisher | -5/Garrison Scavenger-Skirmisher | -4/Factory Scavenger-Skirmisher | -4/Garrison Scavenger-Skirmisher | -3/Research Resources | -11 -10 -10 -9 -9 -9 -8 -8 -8 -7 -7 -7 -7 -6 -6 -5 -5 -4 -4 -3 ----------- Run | Scr Mat Min Mat Min Exi Min Mat Gar Fac Gar Fac Gar Fac Gar Fac Gar Fac Gar Res Matter Collected 8433 | 290 370 . 332 43 46 . 844 859 952 502 673 343 312 541 237 930 . 1159 . Remotely 2117 | . . . . . . . . 505 153 . 76 . 147 177 . 400 . 659 . Salvage Created 9979 | 46 493 . 332 43 . . 1573 879 1554 812 861 143 312 592 237 1140 . 962 . Parts 521 | 4 30 . 20 3 . . 101 64 64 39 31 5 6 35 5 54 . 60 . Haulers Intercepted 6 | . 1 . 1 . . . 4 . . . . . . . . . . . . Recyclers Shooed 6 | 1 1 . 1 . . . . . 1 . 1 . 1 . . . . . . Parts Field Recycled . | . . . . . . . . . . . . . . . . . . . . Retrieved Matter . | . . . . . . . . . . . . . . . . . . . . Parts Self-Destructed . | . . . . . . . . . . . . . . . . . . . . Prevented . | . . . . . . . . . . . . . . . . . . . . Kills | -11 -10 -10 -9 -9 -9 -8 -8 -8 -7 -7 -7 -7 -6 -6 -5 -5 -4 -4 -3 ------- Run | Scr Mat Min Mat Min Exi Min Mat Gar Fac Gar Fac Gar Fac Gar Fac Gar Fac Gar Res Combat Hostiles Destroyed 201 | . 10 . 4 3 . . 31 29 23 24 12 2 1 14 1 26 . 21 . Guns 136 | . 6 . 4 3 . . 24 22 10 12 12 2 1 10 1 12 . 17 . Cannons 1 | . . . . . . . . . . . . . . . . . . 1 . AOE 59 | . 4 . . . . . 7 7 13 12 . . . 3 . 10 . 3 . Classes Destroyed 16 | 1 5 . 2 . . . 3 1 3 . 1 . . . . . . . . Worker 7 | . . . . . . . . . 6 . 1 . . . . . . . . Builder 6 | . 1 . . . . . 2 . 3 . . . . . . . . . . Tunneler 3 | 2 . . . . . . . . 1 . . . . . . . . . . Hauler 6 | . 1 . 1 . . . 4 . . . . . . . . . . . . Recycler 13 | . 2 . 1 . . . 1 . 5 . 1 . 2 . 1 . . . . Mechanic 2 | . . . . . . . . . 2 . . . . . . . . . . Operator 2 | . . . . . . . 1 . 1 . . . . . . . . . . Watcher 5 | . . . 1 . . . 2 . 1 . 1 . . . . . . . . Swarmer 58 | . 3 . . 3 . . 7 14 . 4 . . . 8 . 7 . 12 . Grunt 95 | . 7 . 2 . . . 15 11 17 19 4 . . 5 . 10 . 5 . Brawler 5 | . . . . . . . 1 . 2 . 1 1 . . . . . . . Duelist 4 | . . . . . . . 1 . 2 . . 1 . . . . . . . Sentry 22 | . . . 2 . . . 7 3 1 . 3 . . . 1 4 . 1 . Hunter 4 | . . . . . . . . . . . 1 . . . . 3 . . . Programmer 11 | . . . . . . . . . 1 1 3 . 1 . . 2 . 3 . Behemoth 2 | . . . . . . . . 1 . . . . . 1 . . . . . Best Kill Streak 15 | 2 5 . 3 3 . . 13 5 15 7 3 2 1 6 1 11 . 8 . Combat Bots Only 11 | . 4 . 2 3 . . 11 5 7 7 2 2 1 6 1 11 . 8 . Max Kills in Single Turn 8 | 1 2 . 1 1 . . 3 3 8 2 1 1 1 2 1 3 . 2 . Gunslinging 1 | . . . . . . . 1 1 . . . . . . . 1 . . . Exploded 3 | . 2 . . . . . 3 3 3 2 . . . 2 . 3 . 2 . Melee . | . . . . . . . . . . . . . . . . . . . . Uniques/NPCs Destroyed . | . . . . . . . . . . . . . . . . . . . . Combat | -11 -10 -10 -9 -9 -9 -8 -8 -8 -7 -7 -7 -7 -6 -6 -5 -5 -4 -4 -3 -------- Run | Scr Mat Min Mat Min Exi Min Mat Gar Fac Gar Fac Gar Fac Gar Fac Gar Fac Gar Res Damage Taken 11587 | . 395 . 142 51 . . 937 1706 1800 594 705 177 . 1281 65 958 . 2776 . Core 1680 | . 25 . 10 6 . . 98 268 283 49 51 30 . 90 . 86 . 684 . Absorbed by Shields 1446 | . . . 34 18 . . 324 242 140 301 89 . . 42 12 99 . 145 . Redirected to Shielding 102 | . . . . . . . . . 76 26 . . . . . . . . . Regen/Repaired (Parts) 86 | . . . . . . . . . 86 . . . . . . . . . . Core Remaining (%) 72 | 100 . 90 . . . 96 . 33 . . . 41 . 89 . 91 . 40 . Volleys Fired 502 | 5 36 . 14 4 . . 62 61 52 36 37 11 11 46 16 48 . 63 . Largest 4 | 2 2 . 3 3 . . 3 3 3 3 3 3 3 3 4 4 . 4 . Hottest 191 | 40 100 . 102 102 . . 111 111 109 109 159 106 131 188 141 191 . 159 . Shots Fired 1295 | 10 60 . 42 12 . . 171 178 117 91 106 25 19 118 32 149 . 165 . Gun 1217 | 10 48 . 42 12 . . 163 173 106 79 105 25 19 118 21 140 . 156 . Cannon 20 | . . . . . . . 2 . . . . . . . 11 . . 7 . Launcher 47 | . 4 . . . . . 4 5 11 12 . . . . . 9 . 2 . Special 11 | . 8 . . . . . 2 . . . 1 . . . . . . . . Kinetic 859 | 10 47 . 28 8 . . 108 116 73 55 67 14 11 65 16 91 . 150 . Thermal 272 | . 9 . 14 4 . . 59 57 33 24 34 . 2 18 11 . . 7 . Explosive 47 | . 4 . . . . . 4 5 11 12 . . . . . 9 . 2 . Electromagnetic 116 | . . . . . . . . . . . 4 11 6 35 5 49 . 6 . Robot Hit Streak 30 | 7 13 . 8 6 . . 15 30 15 25 16 11 23 10 12 21 . 17 . Robot Miss Streak 6 | 1 5 . 2 3 . . 5 3 2 3 3 3 1 6 2 3 . 3 . Penetration Max 1 | . . . . . . . . . . . 1 . . 1 . . . 1 . Secondary Targets 36 | . 1 . . 1 . . 5 9 2 3 . 1 . 5 . 3 . 6 . Max Gunslinging Chain 1 | . 1 . . 1 . . 1 1 1 1 . 1 . 1 . 1 . 1 . Shots Hit Robots 896 | 7 34 . 27 5 . . 110 122 93 67 81 21 18 92 13 102 . 104 . Core Hits 509 | 3 25 . 12 3 . . 72 48 99 51 35 7 14 38 6 55 . 41 . Critical Kills 1 | . . . . . . . . . . . 1 . . . . . . . . Critical Parts Destroyed 4 | . . . . . . . . . . . . . 1 1 . 1 . 1 . Critical Strikes 23 | . . . . 1 . . 4 4 4 2 3 . 1 1 . 2 . 1 . Burn 17 | . . . . 1 . . 4 4 4 2 2 . . . . . . . . Destroy 5 | . . . . . . . . . . . 1 . 1 1 . 1 . 1 . Corrupt 1 | . . . . . . . . . . . . . . . . 1 . . . Melee Attacks 38 | . . . . . . . 1 . 9 . 17 . 9 . 2 . . . . Impact 15 | . . . . . . . . . . . 15 . . . . . . . . Slashing 23 | . . . . . . . 1 . 9 . 2 . 9 . 2 . . . . Piercing . | . . . . . . . . . . . . . . . . . . . . Sneak Attacks 3 | . . . . . . . . . 2 . . . 1 . . . . . . Combat Hostiles . | . . . . . . . . . . . . . . . . . . . . Follow-up Attacks . | . . . . . . . . . . . . . . . . . . . . Damage Inflicted 24344 | 72 725 16 349 118 . 4 2616 2850 4414 2547 1669 403 481 1717 268 3498 . 2597 . Guns 15564 | 72 370 . 349 118 . . 1908 2154 1392 1028 1501 403 409 1539 257 1973 . 2091 . Cannons 209 | . . . . . . . . . . . . . . . . . . 209 . Explosions 8182 | . 345 . . . . . 670 696 2868 1518 85 . . 178 . 1525 . 297 . Melee 249 | . . . . . . . . . 122 . 55 . 72 . . . . . . Ramming 140 | . 10 16 . . . 4 38 . 32 1 28 . . . 11 . . . . Kinetic 10398 | 72 358 . 253 64 . . 1210 1387 912 720 931 258 183 814 162 1087 . 1987 . Thermal 3866 | . 12 . 96 54 . . 698 767 622 308 618 . 81 401 . . . 209 . Explosive 7167 | . 345 . . . . . 670 696 2116 1518 . . . . . 1525 . 297 . Electromagnetic 2524 | . . . . . . . . . 610 . 37 145 145 502 95 886 . 104 . Impact 55 | . . . . . . . . . . . 55 . . . . . . . . Slashing 194 | . . . . . . . . . 122 . . . 72 . . . . . . Piercing . | . . . . . . . . . . . . . . . . . . . . Highest Corruption 27 | . . . . . . . 2 2 5 5 6 6 . 10 . 27 . 3 . Average Corruption 4 | . . . . . . . 1 2 4 5 5 6 . 6 . 11 . 2 . Corruption Purged . | . . . . . . . . . . . . . . . . . . . . Corruption Blocked . | . . . . . . . . . . . . . . . . . . . . Effects 141 | . . . . . . . 4 14 5 18 49 6 . 9 . 23 . 13 . Message Errors 32 | . . . . . . . 1 3 . 5 11 2 . 2 . 5 . 3 . Matter Fused 33 | . . . . . . . 1 6 1 5 12 . . 3 . 4 . 1 . Heat Flow Errors 21 | . . . . . . . . 2 1 4 9 . . 1 . 4 . . . Energy Discharges 17 | . . . . . . . . 1 . 1 6 3 . 1 . 5 . . . Parts Rejected 3 | . . . . . . . . . 1 . 1 . . . . . . 1 . Data Loss (minor) 18 | . . . . . . . 1 . . 2 6 1 . 2 . 3 . 3 . Data Loss (major) 6 | . . . . . . . . 1 1 . 1 . . . . 1 . 2 . Misfires 5 | . . . . . . . 1 . 1 . 3 . . . . . . . . Weapon Failures 6 | . . . . . . . . 1 . 1 . . . . . 1 . 3 . Overload Shots . | . . . . . . . . . . . . . . . . . . . . Overflow Damage 315 | . 3 1 . . . . . 42 61 19 69 . 42 . . 67 . 11 . Projectiles . | . . . . . . . . . . . . . . . . . . . . Explosions 199 | . 3 . . . . . . 42 24 19 33 . . . . 67 . 11 . Melee 116 | . . 1 . . . . . . 37 . 36 . 42 . . . . . . Knockbacks 1 | . . . . . . . . . . . 1 . . . . . . . . Impact 1 | . . . . . . . . . . . 1 . . . . . . . . Kinetic . | . . . . . . . . . . . . . . . . . . . . Secondary . | . . . . . . . . . . . . . . . . . . . . Self-Inflicted Damage 258 | . 57 . . . . . 41 7 99 . 54 . . . . . . . . Shots 10 | . 2 . . . . . 1 1 5 . 1 . . . . . . . . Rammed 21 | . 2 1 1 . . 1 5 . 5 1 3 . . . 2 . . . . Targets Rammed 22 | . 2 1 1 . . 1 6 . 5 1 3 . . . 2 . . . . Kicked . | . . . . . . . . . . . . . . . . . . . . Crushed 1 | . . . . . . . 1 . . . . . . . . . . . . Highest Temperature 333 | . 40 . 116 122 . . 305 333 215 279 276 184 3 184 60 299 . 245 . Average Temperature 77 | . 15 . 43 69 . . 98 100 67 96 75 95 2 45 24 80 . 57 . Received Heat Transfer 3081 | . 180 . 41 . . . 395 460 467 257 192 18 . 299 14 142 . 616 . Effects 2 | . . . . . . . . 2 . . . . . . . . . . . Energy Bleed 1 | . . . . . . . . 1 . . . . . . . . . . . Matter Decay 1 | . . . . . . . . 1 . . . . . . . . . . . Siege Activations . | . . . . . . . . . . . . . . . . . . . . Robots Corrupted 6 | . . . . . . . . . . . . . 1 1 . 4 . . . Combat Hostiles 5 | . . . . . . . . . . . . . . 1 . 4 . . . Parts Fried 13 | . . . . . . . . . 1 . 3 1 1 2 . 5 . . . Impact Corruptions 3 | . . 1 . . . . . . . . 2 . . . . . . . . Robots Melted . | . . . . . . . . . . . . . . . . . . . . Combat Hostiles . | . . . . . . . . . . . . . . . . . . . . Parts Melted 14 | . . . 2 . . . 2 . 1 1 5 . . 2 . . . 1 . Heat Transferred 8799 | . 37 . 259 185 . . 1776 1868 1556 925 1304 . 60 607 . . . 222 . Parts Sabotaged . | . . . . . . . . . . . . . . . . . . . . Parts Stolen . | . . . . . . . . . . . . . . . . . . . . Parts Stripped . | . . . . . . . . . . . . . . . . . . . . Power Chain Reactions 5 | . . . . . . . . . 3 . . . . 2 . . . . . Missiles Intercepted . | . . . . . . . . . . . . . . . . . . . . Alert | -11 -10 -10 -9 -9 -9 -8 -8 -8 -7 -7 -7 -7 -6 -6 -5 -5 -4 -4 -3 ------- Run | Scr Mat Min Mat Min Exi Min Mat Gar Fac Gar Fac Gar Fac Gar Fac Gar Fac Gar Res Peak Influence 1441 | 10 290 18 154 130 . . 438 1106 1441 1436 809 306 206 304 257 693 363 558 313 Initial 930 | . 6 18 6 60 . . . 284 580 930 753 266 160 27 159 32 363 254 313 Average 414 | 2 81 18 69 113 . . 131 757 771 1126 556 288 99 168 183 423 363 459 313 Maximum Alert Level 4 | . 1 . . . . . 2 4 4 4 3 1 1 1 1 2 1 2 1 Low Security (%) 38 | 100 92 100 100 100 . 100 82 . . . . . 98 50 70 30 . . . Level 1 13 | . 7 . . . . . 16 10 . . 15 100 1 49 29 1 100 20 100 Level 2 29 | . . . . . . . . 22 69 . 58 . . . . 68 . 79 . Level 3 12 | . . . . . . . . 57 7 45 26 . . . . . . . . Level 4 6 | . . . . . . . . 9 23 54 . . . . . . . . . Level 5 . | . . . . . . . . . . . . . . . . . . . . High Security . | . . . . . . . . . . . . . . . . . . . . Max Security . | . . . . . . . . . . . . . . . . . . . . Squads Dispatched 23 | . 2 . . . . . 5 . 7 . 7 . 1 . 1 . . . . Investigation 5 | . 1 . . . . . 1 . 1 . 2 . . . . . . . . Extermination 6 | . . . . . . . . . 2 . 3 . 1 . . . . . . Reinforcement 8 | . 1 . . . . . 2 . 2 . 2 . . . 1 . . . . Assault 2 | . . . . . . . . . 2 . . . . . . . . . . Garrison 2 | . . . . . . . 2 . . . . . . . . . . . . Intercept . | . . . . . . . . . . . . . . . . . . . . Searches Triggered . | . . . . . . . . . . . . . . . . . . . . Construction Impeded 2 | . . . . . . . . . 1 . 1 . . . . . . . . Haulers Reinforced 1 | . . . . . . . . . 1 . . . . . . . . . . Active Scanning Responses . | . . . . . . . . . . . . . . . . . . . . Cargo Convoy Interrupts . | . . . . . . . . . . . . . . . . . . . . Stealth | -11 -10 -10 -9 -9 -9 -8 -8 -8 -7 -7 -7 -7 -6 -6 -5 -5 -4 -4 -3 --------- Run | Scr Mat Min Mat Min Exi Min Mat Gar Fac Gar Fac Gar Fac Gar Fac Gar Fac Gar Res Distress Signals 8 | . 1 . 1 . . . 4 . 2 . . . . . . . . . . Communications Jammed . | . . . . . . . . . . . . . . . . . . . . Distress Signals . | . . . . . . . . . . . . . . . . . . . . Times Spotted 257 | . 15 . 6 3 . . 42 23 50 25 21 5 4 15 3 24 . 21 . Peak Tracking Total 11 | . 4 . 3 3 . . 11 6 10 4 3 3 1 5 1 6 . 6 . Tactical Retreats 7 | . . . . . . . 2 . 1 . 2 . . 2 . . . . . Traps | -11 -10 -10 -9 -9 -9 -8 -8 -8 -7 -7 -7 -7 -6 -6 -5 -5 -4 -4 -3 ------- Run | Scr Mat Min Mat Min Exi Min Mat Gar Fac Gar Fac Gar Fac Gar Fac Gar Fac Gar Res Traps Triggered 13 | . 1 . 1 . . . 3 2 . . 2 . . . . 3 . 1 . Indirectly . | . . . . . . . . . . . . . . . . . . . . Trap Hack Attempts . | . . . . . . . . . . . . . . . . . . . . Triggered . | . . . . . . . . . . . . . . . . . . . . Disarmed . | . . . . . . . . . . . . . . . . . . . . Reprogrammed . | . . . . . . . . . . . . . . . . . . . . Reused . | . . . . . . . . . . . . . . . . . . . . Traps Extracted . | . . . . . . . . . . . . . . . . . . . . Installed . | . . . . . . . . . . . . . . . . . . . . Triggered . | . . . . . . . . . . . . . . . . . . . . Machines | -11 -10 -10 -9 -9 -9 -8 -8 -8 -7 -7 -7 -7 -6 -6 -5 -5 -4 -4 -3 ---------- Run | Scr Mat Min Mat Min Exi Min Mat Gar Fac Gar Fac Gar Fac Gar Fac Gar Fac Gar Res Machines Disabled 36 | . 2 . . . . . . 1 24 . 7 . . . . 1 . 1 . Max in Single Turn 10 | . 1 . . . . . . 1 10 . 6 . . . . 1 . 1 . Garrison Access 1 | . . . . . . . . . . . . . . . 1 . . . . Garrison Relay 3 | . . . . . . . . 1 . . . . . . . 1 . 1 . Machines Sabotaged . | . . . . . . . . . . . . . . . . . . . . Garrisons Compromised . | . . . . . . . . . . . . . . . . . . . . Overloaded Fab Kills . | . . . . . . . . . . . . . . . . . . . . Hacking | -11 -10 -10 -9 -9 -9 -8 -8 -8 -7 -7 -7 -7 -6 -6 -5 -5 -4 -4 -3 --------- Run | Scr Mat Min Mat Min Exi Min Mat Gar Fac Gar Fac Gar Fac Gar Fac Gar Fac Gar Res Machines Accessed 48 | . 8 . 3 . 1 . 6 . 11 . 11 . 5 . 2 . 1 . . Terminals 31 | . 7 . 2 . . . 4 . 7 . 8 . 3 . . . . . . Fabricators 3 | . . . . . . . . . 2 . 1 . . . . . . . . Repair Stations 3 | . . . 1 . . . 1 . 1 . . . . . . . . . . Recycling Units 3 | . 1 . . . . . . . . . 1 . 1 . . . . . . Scanalyzers . | . . . . . . . . . . . . . . . . . . . . Garrison Access 7 | . . . . . . . 1 . 1 . 1 . 1 . 2 . 1 . . Total Hacks 131 | . 28 . 8 . 1 . 18 . 29 . 29 . 12 . 4 . 2 . . Successful 70 | . 15 . 2 . 1 . 10 . 17 . 10 . 9 . 4 . 2 . . Failed 60 | . 12 . 6 . . . 8 . 12 . 19 . 3 . . . . . . Catastrophic 13 | . . . 1 . . . . . 3 . 8 . 1 . . . . . . Database Lockouts 1 | . 1 . . . . . . . . . . . . . . . . . . Manual 93 | . 24 . 9 . 1 . 15 . 19 . 15 . 10 . . . . . . Terminals 98 | . 26 . 6 . . . 14 . 21 . 23 . 8 . . . . . . Fabricators 5 | . . . . . . . . . 3 . 2 . . . . . . . . Repair Stations 7 | . . . 2 . . . 2 . 3 . . . . . . . . . . Recycling Units 8 | . 2 . . . . . . . . . 3 . 3 . . . . . . Scanalyzers . | . . . . . . . . . . . . . . . . . . . . Garrison Access 12 | . . . . . . . 2 . 2 . 1 . 1 . 4 . 2 . . Terminal Hacks 28 | . 9 . 1 . 1 . 7 . 4 . 4 . 2 . . . . . . Part Schematic 1 | . . . . . . . . . 1 . . . . . . . . . . Robot Analysis 9 | . 3 . 1 . . . 4 . . . . . 1 . . . . . . Prototype ID Bank 1 | . 1 . . . . . . . . . . . . . . . . . . Branch Access Points 1 | . 1 . . . . . . . . . . . . . . . . . . Terminal Index 3 | . 1 . . . . . 1 . 1 . . . . . . . . . . Unreport Threat 5 | . 2 . . . . . 1 . . . 2 . . . . . . . . Locate Traps 6 | . 1 . . . . . 1 . 2 . 1 . 1 . . . . . . Zone Layout 1 | . . . . . . . . . . . 1 . . . . . . . . EX-Prototype ID Bank 1 | . . . . . 1 . . . . . . . . . . . . . . Fabricator Hacks 3 | . . . . . . . . . 2 . 1 . . . . . . . . Network Status 2 | . . . . . . . . . 1 . 1 . . . . . . . . Build 1 | . . . . . . . . . 1 . . . . . . . . . . Repair Station Hacks 2 | . . . . . . . . . 2 . . . . . . . . . . Scan Component 1 | . . . . . . . . . 1 . . . . . . . . . . Repair 1 | . . . . . . . . . 1 . . . . . . . . . . Recycling Unit Hacks 1 | . . . . . . . . . . . 1 . . . . . . . . Retrieve Components 1 | . . . . . . . . . . . 1 . . . . . . . . Scanalyzer . | . . . . . . . . . . . . . . . . . . . . Garrison Access Hacks 11 | . . . . . . . 1 . 2 . 1 . 1 . 4 . 2 . . Unlock Access 6 | . . . . . . . 1 . 1 . 1 . 1 . 1 . 1 . . Seal Access 1 | . . . . . . . . . . . . . . . 1 . . . . Coupler Status 4 | . . . . . . . . . 1 . . . . . 2 . 1 . . Unauthorized Hacks 25 | . 6 . 1 . . . 2 . 7 . 3 . 6 . . . . . . Terminals 15 | . 4 . . . . . 2 . 5 . 1 . 3 . . . . . . Assimilate 4 | . 1 . . . . . . . 2 . . . 1 . . . . . . Botnet 9 | . 2 . . . . . 2 . 2 . 1 . 2 . . . . . . Operators 2 | . 1 . . . . . . . 1 . . . . . . . . . . Fabricators 1 | . . . . . . . . . 1 . . . . . . . . . . Haulers 1 | . . . . . . . . . 1 . . . . . . . . . . Repair Stations 2 | . . . 1 . . . . . 1 . . . . . . . . . . Mechanics 2 | . . . 1 . . . . . 1 . . . . . . . . . . Recycling Units 7 | . 2 . . . . . . . . . 2 . 3 . . . . . . Reject 3 | . 1 . . . . . . . . . 1 . 1 . . . . . . Recyclers 3 | . 1 . . . . . . . . . 1 . 1 . . . . . . Mask 1 | . . . . . . . . . . . . . 1 . . . . . . Scanalyzers . | . . . . . . . . . . . . . . . . . . . . Garrison Access . | . . . . . . . . . . . . . . . . . . . . Data Cores Recovered 1 | . . . . . . . . . 1 . . . . . . . . . . Used . | . . . . . . . . . . . . . . . . . . . . Hacking Detections 40 | . 7 . 2 . . . 6 . 10 . 10 . 3 . 1 . 1 . . Full Trace Events 3 | . . . . . . . . . 1 . 2 . . . . . . . . Feedback Events . | . . . . . . . . . . . . . . . . . . . . Feedback Blocked . | . . . . . . . . . . . . . . . . . . . . Robot Schematics Acquired . | . . . . . . . . . . . . . . . . . . . . Robots Built 2 | . . . . . . . . . 2 . . . . . . . . . . Authchips . | . . . . . . . . . . . . . . . . . . . . Time 67 | . . . . . . . . . 67 . . . . . . . . . . Total Robot Build Rating 8 | . . . . . . . . . 8 . . . . . . . . . . Part Schematics Acquired 1 | . . . . . . . . . 1 . . . . . . . . . . Parts Built . | . . . . . . . . . . . . . . . . . . . . Authchips . | . . . . . . . . . . . . . . . . . . . . Time . | . . . . . . . . . . . . . . . . . . . . Total Part Build Rating . | . . . . . . . . . . . . . . . . . . . . Parts Repaired 1 | . . . . . . . . . 1 . . . . . . . . . . Time 38 | . . . . . . . . . 38 . . . . . . . . . . Parts Recycled . | . . . . . . . . . . . . . . . . . . . . Recycled Matter . | . . . . . . . . . . . . . . . . . . . . Retrieved Matter . | . . . . . . . . . . . . . . . . . . . . Retrieved Components 3 | . . . . . . . . . . . 3 . . . . . . . . Parts Scanalyzed . | . . . . . . . . . . . . . . . . . . . . Part Schematics Acquired . | . . . . . . . . . . . . . . . . . . . . Parts Damaged . | . . . . . . . . . . . . . . . . . . . . Bothacking | -11 -10 -10 -9 -9 -9 -8 -8 -8 -7 -7 -7 -7 -6 -6 -5 -5 -4 -4 -3 ------------ Run | Scr Mat Min Mat Min Exi Min Mat Gar Fac Gar Fac Gar Fac Gar Fac Gar Fac Gar Res Used RIF Installer 6 | . . . . . . . . 1 . 1 . 1 . 1 . 1 . 1 . Coupler Efficiency 1 | . . . . . . . . . . . . . . . . 1 . . . Command Fork 1 | . . . . . . . . . . . . . . . . . . 1 . Zone Cloak 1 | . . . . . . . . . . . . 1 . . . . . . . Robot Detection 1 | . . . . . . . . . . . . . . 1 . . . . . Watcher Feeds 1 | . . . . . . . . . . 1 . . . . . . . . . Robots Hacked . | . . . . . . . . . . . . . . . . . . . . Non-combat . | . . . . . . . . . . . . . . . . . . . . Combat . | . . . . . . . . . . . . . . . . . . . . Robot Hacks Applied . | . . . . . . . . . . . . . . . . . . . . Relay Couplers Released 15 | . . . . . . . . 5 . . . . . . . 5 . 5 . Machine Destruction 15 | . . . . . . . . 5 . . . . . . . 5 . 5 . Attached 5 | . . . . . . . . . . . . . 1 . . . 1 3 . Fabnet Peak Effective % . | . . . . . . . . . . . . . . . . . . . . Robots Rewired . | . . . . . . . . . . . . . . . . . . . . Allies Hacked . | . . . . . . . . . . . . . . . . . . . . Hacks Repelled . | . . . . . . . . . . . . . . . . . . . . Allies | -11 -10 -10 -9 -9 -9 -8 -8 -8 -7 -7 -7 -7 -6 -6 -5 -5 -4 -4 -3 -------- Run | Scr Mat Min Mat Min Exi Min Mat Gar Fac Gar Fac Gar Fac Gar Fac Gar Fac Gar Res Total Allies 5 | . . . . . . . . . 4 . . . 1 . . . . . . Largest Group 2 | . . . . . . . . . 2 2 . . 1 1 . . . . . Highest-Rated Group 64 | . . . . . . . . . 64 64 . . 10 10 . . . . . Highest-Rated Ally 32 | . . . . . . . . . 32 32 . . 10 10 . . . . . Total Orders 3 | . . . . . . . . . 1 . . . . 2 . . . . . STAY 2 | . . . . . . . . . 1 . . . . 1 . . . . . FOLLOW 1 | . . . . . . . . . . . . . . 1 . . . . . Ally Attacks 20 | . . . . . . . . . 9 11 . . . . . . . . . Total Damage 731 | . . . . . . . . . 274 457 . . . . . . . . . Kills 6 | . . . . . . . . . 4 2 . . . . . . . . . Allies Corrupted . | . . . . . . . . . . . . . . . . . . . . Allies Melted . | . . . . . . . . . . . . . . . . . . . . Intel | -11 -10 -10 -9 -9 -9 -8 -8 -8 -7 -7 -7 -7 -6 -6 -5 -5 -4 -4 -3 ------- Run | Scr Mat Min Mat Min Exi Min Mat Gar Fac Gar Fac Gar Fac Gar Fac Gar Fac Gar Res Robot Analysis Total 9 | . 3 . 1 . . . 4 . . . . . 1 . . . . . . Derelict Logs Recovered 1 | . . 1 . . . . . . . . . . . . . . . . . Drone Launches . | . . . . . . . . . . . . . . . . . . . . Drone Recoveries . | . . . . . . . . . . . . . . . . . . . . Exploration | -11 -10 -10 -9 -9 -9 -8 -8 -8 -7 -7 -7 -7 -6 -6 -5 -5 -4 -4 -3 ------------- Run | Scr Mat Min Mat Min Exi Min Mat Gar Fac Gar Fac Gar Fac Gar Fac Gar Fac Gar Res Turns Passed 11641 | 71 767 111 352 71 352 322 1358 866 1212 614 2067 183 790 505 454 851 81 611 3 Spaces Moved 5960 | 48 464 69 168 35 220 195 667 391 609 297 1137 95 432 207 231 418 47 230 . Core 15 | 14 . . . . . . . . . . . . . . . . . 1 . Treads 5415 | . 222 69 168 35 220 195 667 391 609 297 966 95 432 207 231 418 47 146 . Legs 85 | . . . . . . . . . . . 2 . . . . . . 83 . Wheels 445 | 34 242 . . . . . . . . . 169 . . . . . . . . Hover . | . . . . . . . . . . . . . . . . . . . . Flight . | . . . . . . . . . . . . . . . . . . . . Fastest Speed 50 | 50 100 160 160 160 160 160 160 163 150 160 105 162 162 160 160 160 160 120 . Average Speed 156 | 85 128 160 160 160 160 162 160 164 156 160 154 162 162 161 160 160 160 176 . Slowest Speed 850 | 100 160 160 160 160 160 240 240 166 162 160 260 162 162 240 160 240 160 850 . Overloaded Moves . | . . . . . . . . . . . . . . . . . . . . Propulsion Burnouts . | . . . . . . . . . . . . . . . . . . . . Robots Hopped . | . . . . . . . . . . . . . . . . . . . . Cave-ins Triggered . | . . . . . . . . . . . . . . . . . . . . Exploration Rate (%) 38 | 3 87 15 28 14 60 54 58 51 29 66 40 42 21 43 15 65 3 41 . Regions Visited 19 Branch Regions 4 Pre-discovered Areas . | . . . . . . . . . . . . . . . . . . . . Known Exits Taken 8 | . 1 . 1 . . . 1 . 1 . 1 . 1 . 1 . 1 . . Unknown Exits Taken 5 | 1 . 1 . 1 1 1 . . . . . . . . . . . . . Scrap Searched . | . . . . . . . . . . . . . . . . . . . . Spaces Dug 53 | . 7 . . . . . 5 . 6 . 16 . 8 . 11 . . . . Terrain Destroyed 198 | . 40 . . . . . 26 7 28 22 22 . 8 8 11 23 . 3 . Melee 32 | . . . . . . . 1 . 6 . 16 . 8 . 1 . . . . Projectile 25 | . 7 . . . . . 4 . . 2 . . . 1 10 . . 1 . AOE 140 | . 33 . . . . . 21 7 22 20 6 . . 7 . 23 . 1 . Terrain Rammed . | . . . . . . . . . . . . . . . . . . . . Walls Destroyed . | . . . . . . . . . . . . . . . . . . . . Machines Disabled . | . . . . . . . . . . . . . . . . . . . . Actions | -11 -10 -10 -9 -9 -9 -8 -8 -8 -7 -7 -7 -7 -6 -6 -5 -5 -4 -4 -3 --------- Run | Scr Mat Min Mat Min Exi Min Mat Gar Fac Gar Fac Gar Fac Gar Fac Gar Fac Gar Res Total 7289 | 66 559 69 223 40 220 198 835 499 758 369 1340 110 489 292 288 528 52 352 2 Wait 71 | . 8 . . . . 1 4 2 21 2 9 . 5 6 1 4 . 8 . Move 5935 | 47 463 68 167 34 219 194 666 389 608 295 1136 93 431 205 230 416 46 228 . Hop . | . . . . . . . . . . . . . . . . . . . . Pick Up 170 | 7 20 . 10 . 1 . 25 13 11 12 25 2 8 8 9 8 2 9 . Fast Attach 56 | 5 . . 4 . . . 3 . 5 3 13 . 1 3 2 7 . 10 . Attach 96 | 2 6 . 4 . . . 11 9 12 3 10 . 4 7 4 7 2 14 1 Detach 15 | . 1 . 1 . . . 1 . . . 6 . . . 1 3 . 2 . Swap 238 | . 15 . 8 2 . 2 33 20 27 11 39 2 13 14 12 23 2 14 1 Drop 130 | . 8 . 14 . . . 23 5 8 6 29 2 7 3 9 12 . 4 . Fire 502 | 5 36 . 14 4 . . 62 61 52 36 37 11 11 46 16 48 . 63 . Melee 38 | . . . . . . . 1 . 9 . 17 . 9 . 2 . . . . Ram . | . . . . . . . . . . . . . . . . . . . . Kick . | . . . . . . . . . . . . . . . . . . . . Crush 22 | . 2 1 1 . . 1 6 . 5 1 3 . . . 2 . . . . Escape Stasis 16 | . . . . . . . . . . . 16 . . . . . . . . Rewire . | . . . . . . . . . . . . . . . . . . . . Trap . | . . . . . . . . . . . . . . . . . . . . Miscellaneous . | . . . . . . . . . . . . . . . . . . . . Route ------- -11/Scrapyard -10/Materials (discovered 4 exits: *Mat x3 / *Min) -10/Mines -9/Materials (discovered 3 exits: *Min x2 / [*Sto]) -9/Mines -9/Exiles -8/Mines -8/Materials (discovered 2 exits: *Fac / Gar) -8/Garrison (discovered 3 exits: *Fac x3) -7/Factory (discovered 2 exits: *Fac / Gar) -7/Garrison (discovered 3 exits: *Fac x3) -7/Factory (discovered 4 exits: *Fac x3 / Gar) -7/Garrison -6/Factory (discovered 4 exits: *Fac / [*Low x2] / Gar) -6/Garrison (discovered 2 exits: *Fac x2) -5/Factory -5/Garrison (discovered 3 exits: *Fac x3) -4/Factory (discovered 2 exits: [Res] / Gar) -4/Garrison -3/Research History --------- Turn | Location | Event 2 | -11/Scrapyard | Met Revision 17 6 | -11/Scrapyard | Discovered new exit (range 16) 72 | -11/Scrapyard | Entered Materials 114 | -10/Materials | Identified exit to Mines 252 | -10/Materials | Discovered new exit (range 6) 310 | -10/Materials | Build established: Mutant 340 | -10/Materials | Discovered new exit (range 5) 507 | -10/Materials | Discovered new exit (range 5) 579 | -10/Materials | Central database locked down 839 | -10/Materials | Entered Mines 859 | -10/Mines | Learned location of 2 exits from Materials 945 | -10/Mines | Discovered new exit (range 5) 950 | -10/Mines | Entered Materials 950 | -9/Materials | Evolved 2 slots: Utility x1, Weapon x1 951 | -9/Materials | Identified exit to Mines 1118 | -9/Materials | Discovered new exit (range 8) 1302 | -9/Materials | Entered Mines 1365 | -9/Mines | Build established: Scavenger-Skirmisher 1366 | -9/Mines | Deemed a non-threat by the Exiles lab entrance 1366 | -9/Mines | Discovered new exit (range 5) 1373 | -9/Mines | Entered Exiles 1412 | -9/Exiles | Met 8R-AWN 1439 | -9/Exiles | Met EX-HEX 1484 | -9/Exiles | Met EX-BIN 1501 | -9/Exiles | Aligned with FarCom system 1503 | -9/Exiles | Given EX-Vault access code 1540 | -9/Exiles | Opened EX-Vault 1549 | -9/Exiles | Found Cloak of Protection 1584 | -9/Exiles | Warned to stay clear of 0b10 Research branches 1630 | -9/Exiles | Met EX-DEC 1712 | -9/Exiles | Discovered new exit (range 10) 1725 | -9/Exiles | Left Exiles lab with Cloak of Protection 1725 | -9/Exiles | Entered Mines 2042 | -8/Mines | Discovered new exit (range 5) 2047 | -8/Mines | Entered Materials 2047 | -8/Materials | Evolved 2 slots: Propulsion x1, Utility x1 2338 | -8/Materials | Destroyed 8 combat bots 2592 | -8/Materials | Discovered new exit (range 17) 3293 | -8/Materials | Garrison activated, responded to threat 3372 | -8/Materials | Destroyed 11 combat bots 3397 | -8/Materials | Identified exit to Garrison 3405 | -8/Materials | Entered Garrison 3490 | -8/Garrison | Triggered checkpoint 3528 | -8/Garrison | Triggered checkpoint 3572 | -8/Garrison | Triggered checkpoint 3669 | -8/Garrison | Build established: Skirmisher 3673 | -8/Garrison | Spotted B-75 Beast 3730 | -8/Garrison | Core integrity fell below 50% 3732 | -8/Garrison | Destroyed B-75 Beast 3757 | -8/Garrison | Lost 6 parts (1p2n3w) 3790 | -8/Garrison | Discovered new exit (range 12) 3937 | -8/Garrison | Discovered new exit (range 13) 4088 | -8/Garrison | Triggered checkpoint 4112 | -8/Garrison | Triggered checkpoint 4112 | -8/Garrison | Build established: Scavenger-Skirmisher 4150 | -8/Garrison | Triggered checkpoint 4189 | -8/Garrison | Garrison Relay disabled 4229 | -8/Garrison | Discovered new exit (range 16) 4263 | -8/Garrison | Installed Relay Interface Framework 4271 | -8/Garrison | Entered Factory 4271 | -7/Factory | Evolved 2 slots: Propulsion x1, Utility x1 4613 | -7/Factory | Build established: Scavenger-Assassin 4672 | -7/Factory | Repaired Minigun? 4716 | -7/Factory | Discovered new exit (range 14) 5071 | -7/Factory | First assault squad dispatched 5215 | -7/Factory | Destroyed 7 combat bots 5256 | -7/Factory | Lost 8 parts (1p4n3w) 5264 | -7/Factory | Destroyed 7 combat bots 5323 | -7/Factory | Fabricated Y-54 Guardian (x2) 5482 | -7/Factory | Identified exit to Garrison 5483 | -7/Factory | Entered Garrison 5483 | -7/Garrison | Accompanied by 2 allies 5599 | -7/Garrison | Triggered checkpoint 5690 | -7/Garrison | Discovered new exit (range 8) 5760 | -7/Garrison | Triggered checkpoint 5833 | -7/Garrison | Discovered new exit (range 11) 5863 | -7/Garrison | Build established: Scavenger-Skirmisher 5906 | -7/Garrison | Triggered checkpoint 5964 | -7/Garrison | Destroyed 7 combat bots 5996 | -7/Garrison | Triggered checkpoint 5998 | -7/Garrison | Triggered checkpoint 6039 | -7/Garrison | Triggered checkpoint 6059 | -7/Garrison | Discovered new exit (range 14) 6089 | -7/Garrison | Expanded RIF knowledge: Watcher Feeds 6097 | -7/Garrison | Entered Factory 6648 | -7/Factory | Core integrity fell below 50% 6692 | -7/Factory | Lost 7 parts (1p4n1u1w) 6807 | -7/Factory | Discovered new exit (range 8) 7833 | -7/Factory | Build established: Scavenger-Assassin 7914 | -7/Factory | Discovered new exit (range 8) 8154 | -7/Factory | Discovered new exit (range 7) 8159 | -7/Factory | Identified exit to Garrison 8164 | -7/Factory | Entered Garrison 8227 | -7/Garrison | Triggered checkpoint 8313 | -7/Garrison | Discovered new exit (range 12) 8339 | -7/Garrison | Expanded RIF knowledge: Zone Cloak 8347 | -7/Garrison | Entered Factory 8347 | -6/Factory | Evolved 2 slots: Utility x2 8560 | -6/Factory | Discovered new exit (range 10) 8686 | -6/Factory | Discovered new exit (range 24) 9098 | -6/Factory | Discovered new exit (range 11) 9136 | -6/Factory | Identified exit to Garrison 9137 | -6/Factory | Entered Garrison 9137 | -6/Garrison | Accompanied by 1 ally 9184 | -6/Garrison | Spotted B-75 Beast 9192 | -6/Garrison | Triggered checkpoint 9227 | -6/Garrison | Triggered checkpoint 9313 | -6/Garrison | Destroyed B-75 Beast 9340 | -6/Garrison | Lost 6 parts (3n1u2w) 9392 | -6/Garrison | Triggered checkpoint 9443 | -6/Garrison | Discovered new exit (range 8) 9445 | -6/Garrison | Build established: Scavenger-Skirmisher 9597 | -6/Garrison | Discovered new exit (range 17) 9633 | -6/Garrison | Expanded RIF knowledge: Robot Detection 9640 | -6/Garrison | System corruption reached 10% 9642 | -6/Garrison | Entered Factory 9642 | -5/Factory | Evolved 2 slots: Utility x1, Weapon x1 10054 | -5/Factory | Build established: Scavenger-Mutant 10094 | -5/Factory | Identified exit to Garrison 10096 | -5/Factory | Entered Garrison 10106 | -5/Garrison | Expanded RIF knowledge: Coupler Efficiency 10192 | -5/Garrison | Triggered checkpoint 10272 | -5/Garrison | Garrison Relay disabled 10353 | -5/Garrison | Triggered checkpoint 10357 | -5/Garrison | Triggered checkpoint 10394 | -5/Garrison | Destroyed 11 combat bots 10468 | -5/Garrison | Discovered new exit (range 11) 10479 | -5/Garrison | Build established: Scavenger-Skirmisher 10504 | -5/Garrison | Triggered checkpoint 10712 | -5/Garrison | Triggered checkpoint 10721 | -5/Garrison | System corruption reached 10% 10765 | -5/Garrison | Discovered new exit (range 11) 10820 | -5/Garrison | Triggered checkpoint 10928 | -5/Garrison | Discovered new exit (range 10) 10947 | -5/Garrison | Entered Factory 10947 | -4/Factory | Evolved 2 slots: Utility x2 11021 | -4/Factory | Discovered new exit (range 15) 11026 | -4/Factory | Identified exit to Garrison 11028 | -4/Factory | Entered Garrison 11234 | -4/Garrison | Triggered checkpoint 11241 | -4/Garrison | Garrison Relay disabled 11359 | -4/Garrison | Lost 3 parts (2n1w) 11378 | -4/Garrison | Triggered checkpoint 11380 | -4/Garrison | Triggered checkpoint 11416 | -4/Garrison | Triggered checkpoint 11444 | -4/Garrison | Core integrity fell below 50% 11460 | -4/Garrison | Destroyed 8 combat bots 11465 | -4/Garrison | Lost 14 parts (1p2n3u8w) 11607 | -4/Garrison | Discovered new exit (range 8) 11630 | -4/Garrison | Expanded RIF knowledge: Command Fork 11639 | -4/Garrison | Entered Research 11639 | -3/Research | Evolved 2 slots: Propulsion x1, Utility x1 11642 | -3/Research | Self-destructed Last Messages --------------- 11470_ Acquired 82 matter. 11470_ Acquired 31 matter. 11477_ Acquired Flexi-carbon Leg. 11498_ Acquired Autogun. 11511_ Acquired Lgt. Antimatter Reactor. 11512_ Acquired 43 matter. 11514_ Acquired Plasma Rifle. 11518_ Acquired 47 matter. 11527_ System corrupted: Substantial component data lost. 11533_ Acquired Autogun. 11579_ JNTVJI: YO